bitfinex/quotes_SOLUSD_20240816
["timestamp","ask_amount","ask_price","bid_price","bid_amount"]
[1723803240594,6.9877,143.11,143.06,6.99]
[1723803241609,7.9872,143.12,143.07,7.0895]
[1723803241826,1.0,143.12,143.08,6.989]
[1723803241986,1.0,143.12,143.07,0.1]
[1723803242628,1.0,143.12,143.09,6.9882]
[1723803242923,6.9876,143.11,143.07,17.573]
[1723803243300,1.0,143.12,143.07,0.1]
[1723803243628,6.9882,143.1,143.07,0.1]
[1723803243791,7.681625,143.1,143.07,0.1]
[1723803244202,0.693425,143.1,143.07,0.1]
[1723803244539,7.681625,143.1,143.07,0.1]
[1723803245011,6.9882,143.1,143.07,0.1]
[1723803245399,7.23868,143.11,143.07,0.1]
[1723803245722,6.9881,143.1,143.07,0.1]
[1723803245924,6.9886,143.09,143.07,0.1]
[1723803246127,7.682425,143.08,143.07,0.1]
[1723803246319,53.058895,143.08,143.07,0.1]
[1723803246502,53.184385,143.08,143.07,0.1]
[1723803246831,0.12549,143.07,143.02,0.8541425]
[1723803246998,46.195385,143.07,143.02,0.8541425]
[1723803247221,6.9914,143.04,143.02,0.8541425]
[1723803247422,7.810415,143.03,143.02,0.8541425]
[1723803247654,7.935905,143.03,143.02,0.8541425]
[1723803247854,53.061395,143.03,143.02,0.8541425]
[1723803248158,78.63797,143.03,143.02,0.8541425]
[1723803248358,78.63797,143.03,143.0,0.03003]
[1723803248359,6.9925,143.01,143.0,0.03003]
[1723803248535,52.36897,143.01,143.0,0.03003]
[1723803248858,24.03709,143.07,143.0,0.03003]
[1723803249156,0.25098,143.06,143.0,0.03003]
[1723803249363,17.4707,143.1,143.0,0.03003]
[1723803249524,6.9895,143.08,143.02,6.9918]
[1723803249856,6.9882,143.1,143.0,0.03003]
[1723803250059,26.27,143.1,143.0,0.03003]
[1723803250227,6.9886,143.09,143.05,17.4754]
[1723803250423,26.27,143.1,143.02,17.4796]
[1723803250976,26.27,143.1,143.04,17.4771]
[1723803251160,33.2581,143.1,143.05,6.9904]
[1723803251659,15.97646612,143.15,143.06,17.4744]
[1723803251862,18.155725,143.17,143.08,17.4717]
[1723803252529,17.4623,143.17,143.08,17.4717]
[1723803252858,6.9868,143.13,143.08,24.4606]
[1723803253155,26.27,143.11,143.09,6.9885]
[1723803253357,6.9863,143.14,143.09,6.9885]
[1723803253529,7.172325,143.19,143.08,17.4717]
[1723803253865,26.27,143.13,143.09,6.9881]
[1723803254653,26.27,143.13,143.08,17.4717]
[1723803254866,26.27,143.13,143.1,6.9879]
[1723803255543,6.9857,143.15,143.08,17.4717]
[1723803255544,26.27,143.15,143.11,6.9875]
[1723803256240,17.4574,143.21,143.13,6.9866]
[1723803256442,26.27,143.17,143.13,6.9866]
[1723803257447,26.27,143.17,143.14,6.9861]
[1723803258255,26.27,143.19,143.14,6.9861]
[1723803258483,33.2538,143.19,143.14,6.9861]
[1723803259136,33.2538,143.19,143.14,17.4647]
[1723803259137,26.27,143.19,143.14,17.4647]
[1723803259564,33.254,143.19,143.14,24.4507]
[1723803261174,33.254,143.19,143.15,6.9856]
[1723803261339,26.27,143.19,143.15,6.9856]
[1723803261544,26.27,143.19,143.14,17.4647]
[1723803261949,6.9833,143.2,143.14,17.4647]
[1723803262152,6.9838,143.19,143.15,6.9855]
[1723803262353,6.9833,143.2,143.15,6.9855]
[1723803265648,33.2528,143.21,143.16,6.9847]
[1723803266067,33.2528,143.21,143.17,6.9846]
[1723803267074,6.9819,143.23,143.18,6.9841]
[1723803267381,6.9823,143.22,143.18,6.9841]
[1723803270396,33.2518,143.23,143.19,6.9835]
[1723803271279,26.27,143.21,143.17,15.0483]
[1723803271585,0.693425,143.2,143.17,15.0483]
[1723803271788,7.676925,143.2,143.17,15.0483]
[1723803272091,51.9825,143.22,143.18,6.9841]
[1723803272286,0.818915,143.23,143.17,39.4942]
[1723803272487,26.27,143.22,143.17,39.4942]
[1723803272863,6.9828,143.21,143.17,39.4942]
[1723803273167,33.2523,143.22,143.18,6.984]
[1723803273462,26.27,143.22,143.18,6.984]
[1723803274066,33.2522,143.22,143.18,6.984]
[1723803274265,6.9818,143.23,143.19,6.9837]
[1723803274694,6.9814,143.24,143.2,6.9832]
[1723803276369,26.27,143.25,143.21,6.9827]
[1723803276370,33.2508,143.25,143.21,6.9827]
[1723803277679,32.7508,143.25,143.21,6.9827]
[1723803279007,6.9804,143.26,143.22,6.9822]
[1723803279309,26.27418517,143.31,143.23,6.9813]
[1723803279310,6.9794,143.28,143.23,6.9813]
[1723803280602,6.9798,143.27,143.23,6.9813]
[1723803280811,33.2493,143.28,143.24,6.9812]
[1723803280979,33.2493,143.28,143.23,24.4356]
[1723803281409,33.2493,143.28,143.24,23.1276]
[1723803281622,33.2484,143.3,143.25,17.4515]
[1723803281819,33.2484,143.3,143.25,24.4321]
[1723803282013,6.9788,143.29,143.25,24.4321]
[1723803282381,33.2485,143.3,143.25,24.4321]
[1723803285199,33.2485,143.3,143.26,6.9802]
[1723803285493,33.2485,143.3,143.25,24.4321]
[1723803285889,7.672325,143.29,143.25,24.4321]
[1723803286089,6.9793,143.28,143.25,17.4515]
[1723803286820,6.9793,143.28,143.24,23.1276]
[1723803287712,6.9789,143.29,143.24,23.1276]
[1723803288214,7.672325,143.29,143.24,23.1276]
[1723803288556,6.9789,143.29,143.24,23.1276]
[1723803288844,6.9795,143.28,143.24,23.1276]
[1723803289036,33.2495,143.28,143.24,23.1276]
[1723803289531,26.27,143.26,143.24,16.1465]
[1723803289728,26.963425,143.26,143.24,16.1465]
[1723803289934,33.943725,143.26,143.24,16.1465]
[1723803290254,26.27,143.26,143.24,16.1465]
[1723803290411,26.963425,143.26,143.24,16.1465]
[1723803293066,26.27,143.26,143.24,16.1465]
[1723803293557,6.9799,143.27,143.24,16.1465]
[1723803294838,6.9794,143.28,143.24,16.1465]
[1723803295051,33.2489,143.29,143.24,23.1275]
[1723803295466,0.693425,143.28,143.24,23.1275]
[1723803296235,0.693425,143.28,143.25,6.9807]
[1723803296741,33.2489,143.29,143.25,6.9807]
[1723803296933,0.693425,143.28,143.25,6.9807]
[1723803297152,33.2489,143.29,143.25,6.9807]
[1723803297351,0.693425,143.28,143.24,40.5804]
[1723803297547,33.2489,143.29,143.24,40.5804]
[1723803298350,33.2489,143.29,143.25,6.9807]
[1723803298676,26.27,143.29,143.26,6.9799]
[1723803298976,26.27,143.31,143.26,6.9799]
[1723803299835,6.9783,143.3,143.26,6.9799]
[1723803300379,6.95530507,143.35,143.26,6.5227]
[1723803300555,32.0090425,143.38,143.26,6.5227]
[1723803300556,0.693425,143.34,143.3,15.5545]
[1723803300878,6.9767,143.34,143.3,15.5545]
[1723803301048,10.49,143.32,143.3,15.5545]
[1723803301448,10.49,143.32,143.3,22.5327]
[1723803301962,6.9765,143.34,143.3,22.5327]
[1723803302275,26.22,143.33,143.3,22.5327]
[1723803302637,26.22,143.33,143.3,15.5545]
[1723803303173,26.22,143.33,143.3,22.5327]
[1723803305861,26.22,143.35,143.32,6.9773]
[1723803306066,33.1951,143.37,143.33,6.9768]
[1723803306452,33.1951,143.37,143.32,24.4203]
[1723803306965,26.22,143.37,143.33,6.9765]
[1723803307150,26.22,143.37,143.34,6.9763]
[1723803307346,26.22,143.37,143.35,6.9758]
[1723803307550,0.8541425,143.38,143.33,6.0876]
[1723803307551,0.8541425,143.38,143.37,6.9749]
[1723803307765,0.8541425,143.38,143.37,22.3488]
[1723803308191,0.8541425,143.38,143.37,15.3739]
[1723803308370,27.0741425,143.38,143.33,21.4478]
[1723803308545,27.0741425,143.38,143.33,15.3602]
[1723803308546,26.22,143.34,143.33,15.3602]
[1723803308984,26.22,143.34,143.3,17.4452]
[1723803309158,26.22,143.34,143.3,24.4235]
[1723803309655,33.1965,143.34,143.3,24.4235]
[1723803309851,26.22,143.34,143.31,6.9778]
[1723803310088,33.1967,143.34,143.3,17.4452]
[1723803310254,33.1977,143.32,143.29,22.5106]
[1723803310448,33.1975,143.32,143.29,22.5106]
[1723803310756,26.22,143.32,143.29,22.5106]
[1723803311145,33.1974,143.32,143.29,22.5106]
[1723803311584,26.22,143.32,143.29,22.5106]
[1723803311852,26.22,143.32,143.29,29.4893]
[1723803312752,26.22,143.34,143.29,22.5106]
[1723803313068,26.22,143.36,143.31,24.4219]
[1723803313263,26.22,143.34,143.31,17.4441]
[1723803315293,26.22,143.34,143.31,24.4219]
[1723803317494,26.913425,143.34,143.31,17.4441]
[1723803317702,26.22,143.34,143.29,22.5106]
[1723803317903,7.670325,143.33,143.29,29.4893]
[1723803318197,7.670325,143.33,143.29,22.5106]
[1723803318381,6.9774,143.32,143.29,22.5106]
[1723803318581,6.977,143.33,143.29,22.5106]
[1723803319475,33.1964,143.34,143.3,6.9783]
[1723803319867,26.22,143.34,143.31,6.9778]
[1723803321174,26.22,143.36,143.32,6.977]
[1723803321690,26.22,143.36,143.33,6.9769]
[1723803321885,26.22,143.36,143.29,22.5106]
[1723803321886,26.22,143.36,143.34,6.9763]
[1723803322292,26.22,143.36,143.33,6.9768]
[1723803323380,27.0741425,143.38,143.3,20.0]
[1723803323590,0.8541425,143.38,143.36,24.4135]
[1723803324321,0.8541425,143.38,143.36,17.4382]
[1723803325995,27.0741425,143.38,143.34,6.9763]
[1723803326593,27.0741425,143.38,143.35,6.9757]
[1723803327013,27.0741425,143.38,143.29,22.5106]
[1723803327212,26.22,143.34,143.3,17.4453]
[1723803327600,26.22,143.34,143.31,6.9778]
[1723803328404,26.22,143.34,143.32,6.9773]
[1723803328991,33.1957,143.36,143.32,6.9773]
[1723803329291,45.0,143.35,143.32,6.9773]
[1723803329493,26.22,143.34,143.29,22.5106]
[1723803329716,26.22,143.36,143.31,17.4439]
[1723803330014,26.22,143.36,143.32,6.977]
[1723803330522,26.22,143.36,143.31,24.4216]
[1723803330703,33.1954,143.36,143.32,6.9772]
[1723803331021,26.22,143.36,143.33,6.9764]
[1723803331585,27.0741425,143.38,143.35,6.9757]
[1723803331788,27.0741425,143.38,143.31,20.0]
[1723803331989,27.0741425,143.38,143.37,6.9749]
[1723803331990,0.8541425,143.38,143.37,6.9749]
[1723803332285,0.8541425,143.38,143.31,20.0]
[1723803332286,0.8541425,143.38,143.36,6.9753]
[1723803334021,0.8541425,143.38,143.37,6.9749]
[1723803334625,0.8541425,143.38,143.36,6.9753]
[1723803335121,0.8541425,143.38,143.37,8.36980735]
[1723803335423,0.8541425,143.38,143.37,6.9749]
[1723803339144,0.8541425,143.38,143.36,6.9753]
[1723803340720,0.8541425,143.38,143.35,39.8456]
[1723803340721,0.8541425,143.38,143.35,46.8214]
[1723803341048,0.8541425,143.38,143.29,26.22]
[1723803341049,26.22,143.36,143.31,15.425]
[1723803341356,0.12549,143.37,143.28,6.2362]
[1723803341357,26.22,143.33,143.28,6.2362]
[1723803341543,33.890425,143.33,143.28,13.2153]
[1723803341860,6.9775,143.32,143.27,6.9796]
[1723803342059,6.9775,143.32,143.26,17.45]
[1723803342060,71.22,143.31,143.26,17.45]
[1723803342258,26.22,143.29,143.26,17.45]
[1723803342554,26.22,143.29,143.26,24.4302]
[1723803344246,78.1979,143.31,143.27,6.9798]
[1723803344555,0.12549,143.34,143.29,6.9787]
[1723803344756,45.0,143.33,143.29,6.9787]
[1723803345335,51.9769,143.33,143.29,6.9787]
[1723803345751,45.0,143.33,143.29,6.9787]
[1723803345954,45.0,143.34,143.29,6.9787]
[1723803346253,78.1965,143.34,143.29,6.9787]
[1723803346639,6.977,143.33,143.29,6.9787]
[1723803346964,7.670425,143.33,143.29,6.9787]
[1723803347125,6.977,143.33,143.29,6.9787]
[1723803348358,78.1965,143.34,143.29,6.9787]
[1723803348528,26.22,143.34,143.3,17.4454]
[1723803348730,26.22,143.36,143.32,6.977]
[1723803349537,26.22,143.36,143.33,6.9768]
[1723803352683,26.22,143.36,143.32,23.0453]
[1723803353282,26.22,143.36,143.31,6.3402]
[1723803353467,26.22,143.34,143.3,24.4235]
[1723803353779,26.913425,143.34,143.3,24.4235]
[1723803353992,26.22,143.32,143.29,15.136]
[1723803354150,26.22,143.32,143.28,6.9792]
[1723803354489,0.693425,143.31,143.28,6.9792]
[1723803354668,26.22,143.3,143.26,17.4505]
[1723803354997,33.1987,143.3,143.26,17.4505]
[1723803355282,26.22,143.3,143.26,24.4307]
[1723803355787,26.22,143.3,143.27,6.9797]
[1723803356087,45.0,143.31,143.28,6.9789]
[1723803356676,26.47098,143.32,143.26,17.4505]
[1723803356677,26.34549,143.32,143.29,6.9787]
[1723803356855,26.22,143.32,143.29,6.9787]
[1723803357061,26.22,143.32,143.28,6.9792]
[1723803357656,33.1974,143.32,143.28,6.9792]
[1723803357885,0.693425,143.31,143.28,6.9792]
[1723803358293,33.1974,143.32,143.28,6.9792]
[1723803360877,52.35437,143.31,143.27,6.9797]
[1723803361271,0.693425,143.3,143.27,6.9797]
[1723803361493,26.22,143.3,143.27,6.9797]
[1723803361673,26.913425,143.3,143.27,6.9797]
[1723803362694,26.22,143.3,143.27,6.9797]
[1723803362877,45.693425,143.29,143.26,17.4505]
[1723803363099,45.0,143.29,143.26,17.4505]
[1723803363792,33.1984,143.3,143.26,24.4307]
[1723803363793,26.22,143.3,143.26,24.4307]
[1723803366881,7.22898,143.31,143.27,6.9797]
[1723803367084,33.1975,143.32,143.27,6.9797]
[1723803367266,45.693425,143.31,143.27,6.9797]
[1723803367995,45.0,143.31,143.27,6.9797]
[1723803368774,33.57517,143.3,143.26,17.4505]
[1723803369963,0.12549,143.3,143.26,17.4505]
[1723803370173,51.978,143.31,143.26,17.4505]
[1723803371088,51.978,143.31,143.27,6.9796]
[1723803372091,8.048195,143.3,143.26,24.4307]
[1723803372280,7.35477,143.3,143.26,24.4307]
[1723803375400,7.35477,143.3,143.25,16.5582]
[1723803375401,6.9793,143.28,143.25,16.5582]
[1723803375620,0.37647,143.3,143.25,23.5386]
[1723803375621,6.979,143.29,143.25,23.5386]
[1723803375803,27.289895,143.3,143.23,17.4535]
[1723803375804,0.12549,143.27,143.23,17.4535]
[1723803376007,0.12549,143.27,143.16,20.0]
[1723803376008,1.069895,143.27,143.22,16.2003]
[1723803376172,26.22,143.26,143.22,16.2003]
[1723803376375,0.818915,143.25,143.22,16.2003]
[1723803376566,45.818915,143.25,143.22,16.2003]
[1723803377192,45.693425,143.25,143.22,16.2003]
[1723803377372,45.693425,143.25,143.23,6.9813]
[1723803377373,45.0,143.25,143.23,6.9813]
[1723803377583,45.0,143.25,143.22,40.6376]
[1723803377979,45.0,143.25,143.22,16.2003]
[1723803378312,7.10539,143.27,143.22,16.2003]
[1723803378505,45.0,143.26,143.24,6.9812]
[1723803378741,45.12549,143.27,143.23,24.4356]
[1723803378897,0.8541425,143.38,143.26,6.9799]
[1723803378898,6.9782,143.31,143.26,6.9799]
[1723803379103,6.9782,143.31,143.22,16.2003]
[1723803379104,6.9782,143.31,143.27,6.9797]
[1723803379989,6.9784,143.3,143.26,6.9801]
[1723803380305,6.9792,143.29,143.25,17.4516]
[1723803380682,6.9784,143.3,143.25,24.432]
[1723803380996,6.9784,143.3,143.26,6.9802]
[1723803381513,6.979,143.29,143.25,24.4323]
[1723803381804,33.1998,143.27,143.22,23.1824]
[1723803381988,0.693425,143.26,143.23,6.9817]
[1723803383375,0.693425,143.26,143.22,23.1824]
[1723803383520,45.693425,143.26,143.22,23.1824]
[1723803384920,45.0,143.26,143.22,23.1824]
[1723803385309,45.0,143.26,143.22,16.2003]
[1723803385716,26.22,143.27,143.23,6.9813]
[1723803385932,26.22,143.27,143.22,16.2003]
[1723803385933,0.693425,143.26,143.22,23.1823]
[1723803386140,45.0,143.26,143.22,16.2003]
[1723803387108,45.0,143.26,143.23,6.9814]
[1723803387532,26.22,143.29,143.22,16.2003]
[1723803387705,26.34549,143.31,143.23,1.39601917]
[1723803387921,26.34549,143.31,143.25,6.9806]
[1723803387922,6.9785,143.3,143.25,6.9806]
[1723803388427,6.9785,143.3,143.25,24.4319]
[1723803389241,45.0,143.29,143.25,24.4319]
[1723803389910,45.0,143.29,143.26,6.9802]
[1723803390516,45.0,143.29,143.27,6.9796]
[1723803390737,45.0,143.3,143.28,6.9792]
[1723803391040,45.693425,143.3,143.27,24.4288]
[1723803391255,0.693425,143.29,143.27,17.4491]
[1723803391413,51.9784,143.3,143.27,17.4491]
[1723803392255,45.0,143.3,143.27,17.4491]
[1723803392549,0.693425,143.29,143.27,17.4491]
[1723803392755,26.913425,143.29,143.27,17.4491]
[1723803393145,26.913425,143.29,143.25,6.9807]
[1723803393328,45.0,143.28,143.25,6.9807]
[1723803393939,45.0,143.28,143.23,6.9817]
[1723803394135,33.2002,143.27,143.23,6.9817]
[1723803394656,26.22,143.27,143.24,6.9812]
[1723803395451,26.22,143.27,143.23,6.9816]
[1723803396149,33.1999,143.27,143.23,6.9816]
[1723803396572,26.22,143.27,143.23,6.9816]
[1723803397055,26.22,143.27,143.24,6.9812]
[1723803397363,26.22,143.27,143.23,6.9816]
[1723803398777,45.0,143.26,143.23,6.9816]
[1723803399566,45.693425,143.26,143.23,6.9816]
[1723803400687,0.693425,143.25,143.23,6.9816]
[1723803400844,45.0,143.26,143.23,6.9816]
[1723803401948,55.5,143.26,143.22,16.2003]
[1723803402148,10.5,143.24,143.2,6.2592]
[1723803402890,45.0,143.26,143.2,6.2592]
[1723803403051,55.5,143.26,143.23,6.9817]
[1723803403592,55.5,143.26,143.24,6.9812]
[1723803403593,10.5,143.26,143.24,6.9812]
[1723803404165,10.5,143.26,143.23,6.9816]
[1723803404972,10.5,143.26,143.22,17.4547]
[1723803405182,0.12549,143.28,143.25,6.9808]
[1723803405183,10.5,143.28,143.25,6.9808]
[1723803405370,17.4793,143.28,143.24,24.4338]
[1723803406457,45.0,143.27,143.24,24.4338]
[1723803406872,10.5,143.28,143.25,6.9807]
[1723803408089,11.193425,143.28,143.25,6.9807]
[1723803409267,10.5,143.28,143.25,6.9807]
[1723803409469,0.693425,143.27,143.24,24.4338]
[1723803409788,10.5,143.26,143.24,17.4527]
[1723803410091,10.5,143.26,143.23,6.9813]
[1723803410299,10.5,143.24,143.23,6.9813]
[1723803411059,10.5,143.26,143.23,6.9813]
[1723803411481,42.12549,143.29,143.23,17.4537]
[1723803411482,0.12549,143.29,143.23,17.4537]
[1723803411688,10.5,143.28,143.23,17.4537]
[1723803412489,10.5,143.28,143.25,6.9807]
[1723803413195,10.5,143.26,143.24,6.9811]
[1723803413492,10.5,143.26,143.24,6.9812]
[1723803415495,55.5,143.27,143.24,6.9812]
[1723803415801,10.5,143.27,143.25,6.9807]
[1723803416106,7.671625,143.31,143.27,6.9797]
[1723803416267,10.5,143.31,143.24,15.4459]
[1723803416667,10.5,143.31,143.28,6.9792]
[1723803416866,10.5,143.29,143.27,6.9795]
[1723803420275,10.5,143.29,143.24,15.4459]
[1723803420472,10.5,143.27,143.24,15.4459]
[1723803420870,10.5,143.27,143.26,6.9803]
[1723803421474,10.5,143.29,143.27,6.9797]
[1723803422410,0.25098,143.3,143.27,6.9797]
[1723803422573,45.25098,143.3,143.27,6.9797]
[1723803423099,45.12549,143.3,143.27,6.9797]
[1723803423276,17.4779,143.31,143.27,6.9797]
[1723803423613,10.5,143.31,143.28,6.9793]
[1723803427178,6.9767,143.34,143.29,6.9787]
[1723803427374,10.5,143.33,143.29,6.9787]
[1723803427818,6.9752,143.37,143.32,6.9772]
[1723803428080,6.9752,143.37,143.31,15.387]
[1723803428081,0.8541425,143.38,143.35,6.9755]
[1723803429902,0.12549,143.37,143.33,17.4418]
[1723803430105,26.2,143.35,143.32,6.9772]
[1723803430286,0.12549,143.33,143.28,15.5064]
[1723803430512,7.35337,143.33,143.29,6.9788]
[1723803430694,45.12549,143.32,143.29,6.9788]
[1723803432130,0.8541425,143.38,143.33,6.9768]
[1723803432291,6.975,143.37,143.32,6.9772]
[1723803432492,7.8287425,143.38,143.33,6.9768]
[1723803433083,0.8541425,143.38,143.35,6.9758]
[1723803433286,0.8541425,143.38,143.36,6.9752]
[1723803435333,0.8541425,143.38,143.37,6.9749]
[1723803438421,0.8541425,143.38,143.36,17.4381]
[1723803438621,0.12549,143.37,143.34,6.9763]
[1723803438863,45.37647,143.37,143.34,6.9763]
[1723803439259,0.37647,143.37,143.34,6.9763]
[1723803439544,1.069895,143.37,143.34,6.9763]
[1723803440330,27.269895,143.37,143.34,6.9763]
[1723803440524,27.269895,143.37,143.26,20.0]
[1723803440525,26.32549,143.35,143.28,15.1808]
[1723803440744,53.046395,143.34,143.29,6.9785]
[1723803441247,53.046395,143.34,143.3,6.9782]
[1723803441453,52.920905,143.34,143.3,6.9782]
[1723803441817,0.12549,143.33,143.3,6.9782]
[1723803443271,0.12549,143.33,143.3,24.4233]
[1723803443463,7.10249,143.33,143.28,15.1808]
[1723803443620,45.25098,143.34,143.28,15.1808]
[1723803444526,26.2,143.37,143.34,6.9763]
[1723803444743,0.8541425,143.38,143.35,6.9757]
[1723803444914,0.8541425,143.38,143.28,35.1808]
[1723803444915,6.9774,143.32,143.28,15.1808]
[1723803445118,26.2,143.34,143.28,15.1808]
[1723803445340,7.670725,143.33,143.28,22.16]
[1723803445550,26.2,143.32,143.29,6.9787]
[1723803446453,26.893425,143.32,143.29,6.9787]
[1723803447126,26.2,143.32,143.29,6.9787]
[1723803447449,0.12549,143.33,143.29,6.9787]
[1723803447654,26.45098,143.32,143.28,15.1808]
[1723803447863,0.25098,143.31,143.26,6.4301]
[1723803448149,45.25098,143.31,143.26,6.4301]
[1723803448331,45.25098,143.31,143.27,6.9794]
[1723803449115,45.25098,143.31,143.25,16.3763]
[1723803449116,0.25098,143.3,143.25,16.3763]
[1723803449319,27.269895,143.3,143.25,16.3763]
[1723803449526,45.12549,143.29,143.25,16.3763]
[1723803450544,45.12549,143.29,143.26,6.9802]
[1723803451145,0.12549,143.28,143.25,16.3763]
[1723803451458,0.25098,143.28,143.25,16.3763]
[1723803451752,0.12549,143.28,143.25,16.3763]
[1723803452116,45.12549,143.29,143.26,6.9802]
[1723803452320,26.2,143.3,143.26,6.9802]
[1723803452662,26.2,143.32,143.28,6.9791]
[1723803452843,26.2,143.32,143.25,16.3763]
[1723803452844,26.2,143.34,143.25,16.3763]
[1723803453043,33.1774,143.32,143.27,6.9797]
[1723803453231,0.693425,143.31,143.25,16.3763]
[1723803453430,6.9784,143.3,143.26,6.9803]
[1723803453624,0.693425,143.29,143.26,6.9803]
[1723803454032,0.12549,143.3,143.26,6.9803]
[1723803454350,46.069895,143.3,143.26,6.9803]
[1723803454725,45.37647,143.3,143.26,6.9803]
[1723803454978,45.37647,143.3,143.27,6.9798]
[1723803455257,26.2,143.32,143.28,6.9791]
[1723803455862,26.893425,143.32,143.28,6.9791]
[1723803456425,26.893425,143.32,143.26,17.4497]
[1723803456732,52.35437,143.31,143.27,6.9797]
[1723803457050,52.35437,143.31,143.28,17.4475]
[1723803457051,45.25098,143.31,143.28,17.4475]
[1723803457224,45.25098,143.31,143.28,24.4267]
[1723803457417,26.32549,143.32,143.28,24.4267]
[1723803457646,27.018915,143.32,143.28,24.4267]
[1723803457844,26.32549,143.32,143.29,6.9787]
[1723803458040,26.32549,143.32,143.28,24.4267]
[1723803458668,26.32549,143.32,143.28,17.4475]
[1723803458876,26.2,143.34,143.31,6.9777]
[1723803459592,26.2,143.34,143.3,24.4233]
[1723803460257,33.1752,143.37,143.33,17.4422]
[1723803460693,6.9756,143.36,143.31,6.9777]
[1723803460872,6.9756,143.36,143.32,6.9772]
[1723803461575,33.175,143.37,143.32,6.9772]
[1723803461786,0.12549,143.36,143.32,6.9772]
[1723803462284,45.25098,143.36,143.32,6.9772]
[1723803462692,45.25098,143.36,143.33,6.9765]
[1723803462876,45.12549,143.36,143.33,6.9765]
[1723803464758,0.8541425,143.38,143.34,15.2371]
[1723803464955,0.8541425,143.38,143.36,6.975]
[1723803465191,0.8541425,143.38,143.34,15.2371]
[1723803465192,0.8541425,143.38,143.35,6.9758]
[1723803465399,0.8541425,143.38,143.34,32.6777]
[1723803466397,27.0541425,143.38,143.34,32.6777]
[1723803466691,45.37647,143.37,143.34,17.4406]
[1723803467805,0.12549,143.35,143.3,16.2389]
[1723803468111,0.12549,143.35,143.3,23.2171]
[1723803468112,26.2,143.34,143.3,23.2171]
[1723803468908,26.2,143.34,143.31,6.9778]
[1723803469412,26.2,143.34,143.3,16.2389]
[1723803469572,26.2,143.34,143.32,24.4199]
[1723803469772,26.2,143.34,143.32,17.4427]
[1723803469976,26.2,143.36,143.32,17.4427]
[1723803470283,26.32549,143.36,143.32,17.4427]
[1723803471077,26.32549,143.36,143.33,6.9769]
[1723803472378,33.30099,143.36,143.32,24.42]
[1723803472606,45.25098,143.35,143.3,16.2389]
[1723803472827,45.25098,143.35,143.32,6.9773]
[1723803475437,26.32549,143.36,143.33,6.9768]
[1723803477694,26.32549,143.36,143.31,17.4442]
[1723803477695,45.25098,143.35,143.32,6.9772]
[1723803478225,26.32549,143.36,143.32,6.9772]
[1723803478401,26.32549,143.36,143.33,6.9768]
[1723803479624,33.30089,143.36,143.32,6.9772]
[1723803480633,26.32549,143.36,143.32,6.9772]
[1723803480941,0.8541425,143.38,143.33,1.39527678]
[1723803481109,0.8541425,143.38,143.3,36.2389]
[1723803481110,0.8541425,143.38,143.36,6.9753]
[1723803482007,0.8541425,143.38,143.35,24.4151]
[1723803483343,27.0541425,143.38,143.35,24.4151]
[1723803483809,26.2,143.36,143.33,6.9768]
[1723803484241,26.2,143.36,143.32,17.4428]
[1723803484634,26.2,143.36,143.33,6.9765]